Cogmind - Beta 13 @@@ ROGUE MODE // 2024.03.25 @ 19:06:49 Player: Waste Result: Destroyed by Shrapnel Trap Performance ------------- Evolutions (0) 0 Regions Visited (2) 400 Robots Destroyed (17) 85 Value Destroyed (519) 519 Prototype IDs (2) 40 Alien Tech Used (0) 0 Bonus (0) 0 TOTAL SCORE: 1044 Bonus ------- None Cogmind --------- Core Integrity 0/250 Matter 283/300 Energy 123/125 System Corruption 0% Temperature Cool (0) Movement Rolling (100) Location -10/Subcaves Parts ------- > --- POWER (1) -------- Light Ion Engine > --- PROPULSION (2) --- Compact Wheel Compact Wheel > --- UTILITY (2) ------ Heat Sink Medium Storage Unit > --- WEAPON (2) ------- Subdweller Laser Makeshift Hammer > --- INVENTORY (10) --- Ion Engine Light Treads Light Treads Aluminum Leg EM Pulse Gun Riot Gun Subdweller Beam Cannon Battle Cannon Grenade Launcher Makeshift Axe Peak State ------------ > --- POWER ------------ Light Ion Engine > --- PROPULSION ------- Compact Wheel Compact Wheel > --- UTILITY ---------- Heat Sink Medium Storage Unit > --- WEAPON ----------- Subdweller Laser Makeshift Hammer > --- INVENTORY -------- Ion Engine Light Treads Light Treads Aluminum Leg EM Pulse Gun Riot Gun Subdweller Beam Cannon Subdweller Beam Cannon Battle Cannon Grenade Launcher [Rating: 12] Favorites ----------- Power Ion Engine Engine Ion Engine Propulsion Aluminum Leg Leg Aluminum Leg Wheel Compact Wheel Utility Heat Sink Device Heat Sink Storage Medium Storage Unit Weapon Subdweller Beam Cannon Energy Gun Subdweller Laser Energy Cannon Subdweller Beam Cannon Ballistic Gun Light Assault Rifle Ballistic Cannon Battle Cannon Launcher Grenade Launcher Impact Weapon Hammer Build | -11 -10 -10 ------- Run | Yrd Mat Sub Slots Evolved . | . . . Power . | . . . Propulsion . | . . . Utility . | . . . Weapon . | . . . Parts Attached 32 | . 15 17 Power 3 | . 2 1 Engine 3 | . 2 1 Core . | . . . Reactor . | . . . Propulsion 6 | . 4 2 Treads . | . . . Leg 4 | . 4 . Wheel 2 | . . 2 Hover . | . . . Flight . | . . . Utility 2 | . 2 . Device 1 | . 1 . Storage 1 | . 1 . Processor . | . . . Hackware . | . . . Protection . | . . . Artifact . | . . . Weapon 21 | . 7 14 Energy Gun 6 | . 4 2 Energy Cannon 3 | . . 3 Ballistic Gun 2 | . 2 . Ballistic Cannon 2 | . . 2 Launcher 2 | . . 2 Special Weapon . | . . . Impact Weapon 6 | . 1 5 Slashing Weapon . | . . . Piercing Weapon . | . . . Special Melee Weapon . | . . . Unidentified Prototypes . | . . . Parts Lost 2 | . . 2 Power . | . . . Propulsion 2 | . . 2 Utility . | . . . Weapon . | . . . Highest Loss Streak 2 | . . 2 To Critical Strikes . | . . . Average Slot Usage (%) 99 | . 96 99 Engine 14 | . 14 14 Leg 20 | . 27 18 Wheel 7 | . . 9 Device 13 | . 11 14 Storage 14 | . 14 14 Energy Gun 8 | . 13 6 Energy Cannon 8 | . . 11 Ballistic Gun 3 | . 13 . Ballistic Cannon 2 | . . 2 Impact Weapon 5 | . . 7 Naked Turns . | . . . Heaviest Build 28 | 11 21 28 Greatest Support 32 | 20 20 32 Greatest Overweight (x) 2 | . 1 2 Average Overweight (x) . | . . . Largest Inventory Capacity 10 | . 10 10 Average Capacity 9 | . 9 10 Most Carried 10 | . 10 10 Average Carried 9 | . 8 9 Final Capacity 10 | 8 10 10 Final Carried 10 | 6 10 10 Class Distribution -------------------- 85% | Mutant 14% | Scavenger-Mutant Dominant Class ---------------- Mutant | -10/Materials Mutant | -10/Subcaves Resources | -11 -10 -10 ----------- Run | Yrd Mat Sub Matter Collected 587 | 200 96 291 Remotely . | . . . Salvage Created 533 | . 243 290 Parts 39 | . 13 26 Haulers Intercepted . | . . . Recyclers Shooed . | . . . Parts Field Recycled . | . . . Retrieved Matter . | . . . Parts Self-Destructed 8 | . . 8 Prevented . | . . . Kills | -11 -10 -10 ------- Run | Yrd Mat Sub Combat Hostiles Destroyed 16 | . 5 11 Guns 5 | . 5 . Cannons 7 | . . 7 AOE 4 | . . 4 Classes Destroyed 4 | . 2 2 Watcher 1 | . 1 . Swarmer 4 | . . 4 Grunt 5 | . 5 . Subdweller 7 | . . 7 Best Kill Streak 4 | . 3 4 Combat Bots Only 4 | . 2 4 Max Kills in Single Turn 3 | . 1 3 Gunslinging . | . . . Exploded 3 | . . 3 Melee . | . . . Uniques/NPCs Destroyed . | . . . Combat | -11 -10 -10 -------- Run | Yrd Mat Sub Hostile Shots Fired 66 | . 26 40 Missed 17 | . 8 9 Damage Taken 907 | . 206 701 Core 257 | . 49 208 Absorbed by Shields . | . . . Core Remaining (%) 100 | 100 . . Volleys Fired 41 | . 21 20 Largest 2 | . 2 2 Hottest 160 | . 70 160 Shots Fired 77 | . 42 35 Gun 50 | . 42 8 Cannon 23 | . . 23 Launcher 4 | . . 4 Special . | . . . Kinetic 28 | . 21 7 Thermal 45 | . 21 24 Explosive 4 | . . 4 Electromagnetic . | . . . Robot Hit Streak 11 | . 7 11 Robot Miss Streak 2 | . 2 1 Penetration Max . | . . . Secondary Targets . | . . . Shots Hit Robots 48 | . 27 21 Core Hits 27 | . 15 12 Critical Kills . | . . . Critical Parts Destroyed . | . . . Critical Strikes 1 | . 1 . Burn 1 | . 1 . Melee Attacks 26 | . 1 25 Impact 26 | . 1 25 Slashing . | . . . Piercing . | . . . Sneak Attacks . | . . . Combat Hostiles . | . . . Follow-up Attacks . | . . . Damage Inflicted 1109 | . 294 815 Guns 342 | . 288 54 Cannons 438 | . . 438 Explosions 323 | . . 323 Melee . | . . . Ramming 6 | . 6 . Kinetic 182 | . 79 103 Thermal 598 | . 209 389 Explosive 323 | . . 323 Electromagnetic . | . . . Impact . | . . . Slashing . | . . . Piercing . | . . . Highest Corruption . | . . . Average Corruption . | . . . Corruption Purged . | . . . Corruption Blocked . | . . . Overload Shots . | . . . Overflow Damage 31 | . . 31 Projectiles . | . . . Explosions 31 | . . 31 Melee . | . . . Knockbacks 1 | . . 1 Impact . | . . . Kinetic 1 | . . 1 Secondary . | . . . Self-Inflicted Damage 77 | . . 77 Shots 2 | . . 2 Rammed . | . . . Targets Rammed 4 | . 4 . Kicked 4 | . 4 . Crushed . | . . . Highest Temperature 276 | . 276 9 Average Temperature 99 | . 114 3 Received Heat Transfer 243 | . 117 126 Siege Activations . | . . . Robots Corrupted . | . . . Combat Hostiles . | . . . Parts Fried . | . . . Impact Corruptions . | . . . Robots Melted . | . . . Combat Hostiles . | . . . Parts Melted 1 | . . 1 Heat Transferred 1234 | . 703 531 Parts Sabotaged . | . . . Parts Stolen . | . . . Parts Stripped . | . . . Power Chain Reactions . | . . . Alert | -11 -10 -10 ------- Run | Yrd Mat Sub Peak Influence 128 | . 128 . Initial . | . . . Average 77 | . 77 . Maximum Alert Level . | . . . Low Security (%) 100 | . 100 . Level 1 . | . . . Level 2 . | . . . Level 3 . | . . . Level 4 . | . . . Level 5 . | . . . High Security . | . . . Max Security . | . . . Squads Dispatched 1 | . 1 . Investigation 1 | . 1 . Extermination . | . . . Reinforcement . | . . . Assault . | . . . Garrison . | . . . Intercept . | . . . Searches Triggered . | . . . Construction Impeded . | . . . Haulers Reinforced . | . . . Active Scanning Responses . | . . . Cargo Convoy Interrupts . | . . . Stealth | -11 -10 -10 --------- Run | Yrd Mat Sub Distress Signals 2 | . 2 . Communications Jammed . | . . . Distress Signals . | . . . Times Spotted 20 | . 8 12 Peak Tracking Total 4 | . 4 4 Tactical Retreats 1 | . . 1 Traps | -11 -10 -10 ------- Run | Yrd Mat Sub Traps Triggered 4 | . 1 3 Indirectly . | . . . Trap Hack Attempts . | . . . Triggered . | . . . Disarmed . | . . . Reprogrammed . | . . . Reused . | . . . Traps Extracted . | . . . Installed . | . . . Triggered . | . . . Machines | -11 -10 -10 ---------- Run | Yrd Mat Sub Machines Disabled . | . . . Max in Single Turn . | . . . Machines Repaired . | . . . Machines Dismantled . | . . . Machines Sabotaged . | . . . Overloaded Fab Kills . | . . . Hacking | -11 -10 -10 --------- Run | Yrd Mat Sub Machines Accessed 4 | . 4 . Terminals 3 | . 3 . Fabricators . | . . . Repair Stations . | . . . Recycling Units 1 | . 1 . Scanalyzers . | . . . Garrison Access . | . . . Total Hacks 9 | . 9 . Successful 3 | . 3 . Failed 5 | . 5 . Catastrophic 2 | . 2 . Database Lockouts 1 | . 1 . Manual 6 | . 6 . Terminals 7 | . 7 . Fabricators . | . . . Repair Stations . | . . . Recycling Units 2 | . 2 . Scanalyzers . | . . . Garrison Access . | . . . Terminal Hacks 2 | . 2 . Robot Analysis 1 | . 1 . Prototype ID Bank 1 | . 1 . Fabricator Hacks . | . . . Repair Station Hacks . | . . . Recycling Unit Hacks . | . . . Scanalyzer . | . . . Garrison Access Hacks . | . . . Unauthorized Hacks 1 | . 1 . Terminals . | . . . Fabricators . | . . . Repair Stations . | . . . Recycling Units 1 | . 1 . Tunnel 1 | . 1 . Scanalyzers . | . . . Garrison Access . | . . . Data Cores Recovered . | . . . Used . | . . . Hacking Detections 3 | . 3 . Full Trace Events . | . . . Feedback Events . | . . . Feedback Blocked . | . . . Robot Schematics Acquired . | . . . Robots Built . | . . . Authchips . | . . . Time . | . . . Total Robot Build Rating . | . . . Part Schematics Acquired . | . . . Parts Built . | . . . Authchips . | . . . Time . | . . . Total Part Build Rating . | . . . Parts Repaired . | . . . Time . | . . . Parts Recycled . | . . . Recycled Matter . | . . . Retrieved Matter . | . . . Retrieved Components . | . . . Parts Scanalyzed . | . . . Part Schematics Acquired . | . . . Parts Damaged . | . . . Bothacking | -11 -10 -10 ------------ Run | Yrd Mat Sub Used RIF Installer . | . . . Robots Hacked . | . . . Non-combat . | . . . Combat . | . . . Robot Hacks Applied . | . . . Relay Couplers Released . | . . . Fabnet Peak Effective % . | . . . Robots Rewired . | . . . Allies Hacked . | . . . Hacks Repelled . | . . . Allies | -11 -10 -10 -------- Run | Yrd Mat Sub Total Allies . | . . . Largest Group . | . . . Highest-Rated Group . | . . . Highest-Rated Ally . | . . . Total Orders . | . . . Ally Attacks . | . . . Total Damage . | . . . Kills . | . . . Allies Corrupted . | . . . Allies Melted . | . . . Intel | -11 -10 -10 ------- Run | Yrd Mat Sub Robot Analysis Total 1 | . 1 . Derelict Logs Recovered . | . . . Drone Launches . | . . . Drone Recoveries . | . . . Exploration | -11 -10 -10 ------------- Run | Yrd Mat Sub Turns Passed 2663 | . 686 1977 Spaces Moved 1616 | 1 378 1237 Core . | . . . Treads . | . . . Legs 990 | 1 378 611 Wheels 626 | . . 626 Hover . | . . . Flight . | . . . Fastest Speed 100 | 120 120 100 Average Speed 138 | 120 120 144 Slowest Speed 260 | 120 190 260 Overloaded Moves . | . . . Propulsion Burnouts . | . . . Robots Hopped . | . . . Cave-ins Triggered . | . . . Exploration Rate (%) 40 | 1 60 60 Regions Visited 2 Branch Regions 1 Pre-discovered Areas 2 | . 1 1 Known Exits Taken . | . . . Unknown Exits Taken 2 | 1 1 . Scrap Searched 5 | . . 5 Spaces Dug 3 | . 1 2 Terrain Destroyed 14 | . 1 13 Melee 3 | . 1 2 Projectile 1 | . . 1 AOE 10 | . . 10 Terrain Rammed . | . . . Walls Destroyed . | . . . Machines Disabled . | . . . Actions | -11 -10 -10 --------- Run | Yrd Mat Sub Total 1914 | . 569 1345 Wait 172 | . 137 35 Move 1614 | . 377 1237 Hop . | . . . Pick Up 10 | . 5 5 Fast Attach 6 | . 4 2 Attach 2 | . . 2 Detach . | . . . Swap 24 | . 11 13 Drop 15 | . 9 6 Fire 41 | . 21 20 Melee 26 | . 1 25 Ram . | . . . Kick 4 | . 4 . Crush . | . . . Escape Stasis . | . . . Rewire . | . . . Trap . | . . . Miscellaneous . | . . . Route ------- -11/Scrapyard -10/Materials (discovered 3 exits: [*Mat x2] / [*Sub]) -10/Subcaves (discovered 3 exits: [*Mat x2] / [*Rec]) History --------- Turn | Location | Event 1 | -11/Scrapyard | Discovered new exit (range 0) 1 | -11/Scrapyard | Entered Materials 316 | -10/Materials | Build established: Mutant 419 | -10/Materials | Discovered new exit (range 7) 546 | -10/Materials | Central database locked down 548 | -10/Materials | Discovered new exit (range 16) 669 | -10/Materials | Discovered new exit (range 5) 687 | -10/Materials | Entered Subcaves 689 | -10/Subcaves | Shifting Twisted Machinery released Sub. Beam Cannon 802 | -10/Subcaves | Ambushed by Subdwellers from Twisted Machinery 904 | -10/Subcaves | Discovered new exit (range 14) 1234 | -10/Subcaves | A swath of the cavern ceiling suddenly collapsed 1414 | -10/Subcaves | Discovered new exit (range 7) 1953 | -10/Subcaves | Discovered new exit (range 14) 1966 | -10/Subcaves | Core integrity fell below 50% 2033 | -10/Subcaves | Disturbed a concealed Subdweller 2089 | -10/Subcaves | Core integrity fell below 20% 2309 | -10/Subcaves | Shifting Twisted Machinery released Mak. Hammer 2326 | -10/Subcaves | Shifting Twisted Machinery released Mak. Axe 2459 | -10/Subcaves | Learned location of Zion (-6) 2459 | -10/Subcaves | Met a Zionite searching for "candidates" 2664 | -10/Subcaves | Destroyed by Shrapnel Trap Last Messages --------------- Mak. Hammer falls loose from the Twisted Machinery. 02314_ Dropped Hammer. 02314_ Acquired Mak. Hammer. Mak. Axe falls loose from the Twisted Machinery. 02341_ Dropped Broken Sub. Beam Cannon. 02342_ Acquired Mak. Axe. 02418_ 4O-FXW(z): "She is not going to be happy we haven't found any suitable candidates yet." 02459_ 4O-FXW(z): "Hey you! It's really dangerous down here, I feel that you could die at any moment. For your health and safety might I suggest a trip to Zion?" World map updated: -6/Zion. 02657_ Triggered Piercing Trap. 02657_ Spikes shoot up from the floor. 02657_ Critical hit (Impale). 02659_ Triggered Piercing Trap. 02659_ Spikes shoot up from the floor. 02659_ Critical hit (Impale). 02664_ Triggered Shrapnel Trap. 02664_ An expanding cloud of shrapnel blasts out in all directions. Map ----- +----------------------------------------------------+ | ???????????????????????????????????????????????# | | ?????????????????????????????????????????? | | ???????????????????????????????????????????? ?? | | ?????????????????????????????????????????????????? | | ?????????????????????????????????????????????????# | | ???????????????????????????????????????????????## | | ???????????????????????????????????????????????# | | ??????????????????????????????????????????????## | | ??????????????????????????????????????????????# | | ???????????????????????????????????????##?????# # | | ??????????????????????????????????????## ?????# # | | ??????????????????????????#???????????# ????# | | ????????????????????????? #??????????## ??## | | ????????????????????????? #??????????# #?# | | ????????????????????????? ??????????# ## | | ????????????????????????? ??????????# | | ????????????????????????? ????????????# | | ??????????????????????### ?????????##?## | | ?????????????????????## ????????# ##?### | | ?????????????????????? #?####### #?### | | ??????????????????????# ### ## ### | | ??????????????????????# ?? ## | | ?????????????????????## #??? ### | | ?????????????????????# # #### #?## | | ?????????????????????#^ ## ## #???# | | ???????????????# ### @ ##??# | | ???????????????# ## #### | | ???????????????## # ## ## ## ## | | ????????????????#??##?## ### #### | | ???????????????????????#### ####### | | ????????????????????###???## ## ## | | ???????????????????## #????##### | | ??????????????????## #????????## | | ???#####?????????## ##???####?## ##### | | ??## #??####???# #??## #??# ########## | | ??# #### #???# #### ##?# ##???## ## | | ??# #???# #?# ###### # | | ??# ##### ##?# # | | ??# ## ### ##?# ### | | ??## ### #### ### #?##### | | ???####### ## ### #?????## | | ???????## ### ### ##??##### # | | ???##### ##### ##### ##?## ## | | ??## ### #?## ### ## | | ??# ##?# ##?## = ## | | ??## ###??## ####??# | | ???### ##?????## ##???### # ### | | ?????####???????# #???## ## ###?## | | ????????????????## #???# #### ##????## | | ?????????????????# #??# ##??## #??????## | +----------------------------------------------------+ Best States ------------- Heat Dissipation 35 Energy Generation 10 Energy Capacity 250 Matter Stores 300 Matter Capacity 300 Sight Range 16 Terrain Scan Density 10 Evasion (%) 55 Item Schematics ----------------- None Robot Schematics ------------------ None Fabricated ------------ Nothing Alien Tech Used ----------------- None Achievements -------------- None Challenges ------------ None Game ------ Seed BattleDirtyKinecellerator Manual? 0 Play Time 00:16:44 Cumulative 170.4 hours Start 2024.03.25 @ 18:56:47 End 2024.03.25 @ 19:06:49 Sessions 1 Manual Loads 0 Difficulty Rogue Special Mode None Game No. 236 Rogue 236 Adventurer 0 Explorer 0 Win Type - Total 3 Types 2/0/0/1/0/0/0/0/0 Lore% 64 Gallery% 73 Achievement% 66 Wizard Run 0 Options --------- Layout 0 ASCII 0 Keyboard 0 Movement Numpad Keybinds 0 Fullscreen 1 Font 18/SmallcapsGlow Map View 76x50 Zoom Use 0% Tactical HUD 1 Map Filters NONE Filters NONE Steam 1 RUN: ac88d5a1-8eed-44a9-986f-6c8f73069bd2